fUSD/lending_fUSD_20251122
["ID","MTS","AMOUNT","RATE_DAILY","PERIOD"]
[394637791,1763802642314,-500.0,0.00016438,2]
[394637792,1763802642323,-500.0,0.00016438,2]
[394637793,1763802642332,-500.0,0.00016438,2]
[394637794,1763802642341,-500.0,0.00016438,2]
[394637795,1763802642351,-500.0,0.00016438,2]
[394637796,1763802642361,-500.0,0.00016438,2]
[394637797,1763802642370,-777.56,0.00016438,2]
[394637798,1763802642380,-986.09,0.00016438,2]
[394637799,1763802642389,-463.97829408,0.00016438,2]
[394637800,1763802642398,-824.86,0.00016438,2]
[394637801,1763802642407,-416.35387078,0.00016438,2]
[394637802,1763802642417,-500.0,0.00016438,2]
[394637803,1763802642426,-500.0,0.00016438,2]
[394637804,1763802642435,-500.0,0.00016438,2]
[394637805,1763802642445,-500.0,0.00016438,2]
[394637806,1763802642454,-500.0,0.00016438,2]
[394637807,1763802642463,-585.42,0.00016438,2]
[394637808,1763802642472,-500.0,0.00016438,2]
[394637809,1763802642481,-500.0,0.00016438,2]
[394637810,1763802642492,-500.0,0.00016438,2]
[394637811,1763802642501,-500.0,0.00016438,2]
[394637812,1763802642511,-399.00491306,0.00016438,2]
[394637822,1763802643238,-100.99508694,0.00016438,2]
[394637823,1763802643250,-500.0,0.00016438,2]
[394637824,1763802643259,-671.37,0.00016438,2]
[394637825,1763802643268,-500.0,0.00016438,2]
[394637826,1763802643278,-671.32,0.00016438,2]
[394637827,1763802643287,-638.6410731,0.00016438,2]
[394637828,1763802643297,-560.3,0.00016438,2]
[394637829,1763802643306,-500.0,0.00016438,2]
[394637830,1763802643315,-406.93149399,0.00016438,2]
[394637831,1763802643325,-500.0,0.00016438,2]
[394637832,1763802643334,-614.45,0.00016438,2]
[394637833,1763802643344,-500.0,0.00016438,2]
[394637834,1763802643354,-500.0,0.00016438,2]
[394637835,1763802643367,-500.0,0.00016438,2]
[394637836,1763802643376,-822.22,0.00016438,2]
[394637837,1763802643386,-706.26,0.00016438,2]
[394637838,1763802643395,-500.0,0.00016438,2]
[394637839,1763802643404,-500.0,0.00016438,2]
[394637840,1763802643413,-500.0,0.00016438,2]
[394637841,1763802643422,-301.22980364,0.00016438,2]
[394637842,1763802643902,-865.26019636,0.00016438,2]
[394637843,1763802643912,-520.78484154,0.00016438,2]
[394637844,1763802643922,-500.0,0.00016438,2]
[394637845,1763802643931,-903.6,0.00016438,2]
[394637846,1763802643940,-500.0,0.00016438,2]
[394637847,1763802643949,-505.52,0.00016438,2]
[394637848,1763802643959,-500.0,0.00016438,2]
[394637849,1763802643968,-500.0,0.00016438,2]
[394637850,1763802643977,-500.0,0.00016438,2]
[394637851,1763802643987,-500.0,0.00016438,2]
[394637852,1763802643997,-500.0,0.00016438,2]
[394637853,1763802644007,-500.0,0.00016438,2]
[394637854,1763802644016,-500.0,0.00016438,2]
[394637855,1763802644026,-500.0,0.00016438,2]
[394637856,1763802644035,-500.0,0.00016438,2]
[394637857,1763802644044,-425.40851909,0.00016438,2]
[394637858,1763802644054,-500.0,0.00016438,2]
[394637859,1763802644063,-500.0,0.00016438,2]
[394637860,1763802644074,-500.0,0.00016438,2]
[394637861,1763802644084,-550.37,0.00016438,2]
[394637862,1763802644093,-618.05,0.00016438,2]
[394637863,1763802644103,-730.3,0.00016438,2]
[394637864,1763802644112,-500.0,0.00016438,2]
[394637865,1763802644122,-587.49,0.00016438,2]
[394637866,1763802644131,-500.0,0.00016438,2]
[394637867,1763802644140,-500.0,0.00016438,2]
[394637868,1763802644149,-500.0,0.00016438,2]
[394637869,1763802644158,-500.0,0.00016438,2]
[394637870,1763802644167,-794.91,0.00016438,2]
[394637871,1763802644176,-500.0,0.00016438,2]
[394637872,1763802644185,-501.23,0.00016438,2]
[394637873,1763802644194,-500.0,0.00016438,2]
[394637874,1763802644203,-1194.55,0.00016438,2]
[394637875,1763802644212,-564.1,0.00016438,2]
[394637876,1763802644221,-514.38,0.00016438,2]
[394637877,1763802644230,-500.0,0.00016438,2]
[394637878,1763802644239,-407.66480269,0.00016438,2]
[394637879,1763802644248,-500.0,0.00016438,2]
[394637880,1763802644258,-418.98331999,0.00016438,2]
[394637881,1763802644267,-500.0,0.00016438,2]
[394637882,1763802644276,-1482.78,0.00016438,2]
[394637883,1763802644285,-613.62,0.00016438,2]
[394637884,1763802644294,-939.58,0.00016438,2]
[394637885,1763802644303,-1000.0,0.00016438,2]
[394637886,1763802644312,-500.0,0.00016438,2]
[394637887,1763802644321,-500.0,0.00016438,2]
[394637888,1763802644330,-664.84,0.00016438,2]
[394637889,1763802644339,-500.0,0.00016438,2]
[394637890,1763802644349,-500.0,0.00016438,2]
[394637891,1763802644360,-500.0,0.00016438,2]
[394637892,1763802644370,-601.77,0.00016438,2]
[394637893,1763802644380,-550.28,0.00016438,2]
[394637894,1763802644389,-500.0,0.00016438,2]
[394637895,1763802644398,-582.78,0.00016438,2]
[394637896,1763802644407,-500.0,0.00016438,2]
[394637897,1763802644416,-930.85,0.00016438,2]
[394637898,1763802644427,-221.91724997,0.00016438,2]
[394637899,1763802644438,-500.0,0.00016438,2]
[394637900,1763802644448,-500.0,0.00016438,2]
[394637901,1763802644458,-605.32,0.00016438,2]
[394637902,1763802644467,-500.0,0.00016438,2]
[394637903,1763802644477,-422.41670267,0.00016438,2]
[394637904,1763802644486,-500.0,0.00016438,2]
[394637905,1763802644495,-1542.47,0.00016438,2]
[394637906,1763802644504,-500.0,0.00016438,2]
[394637907,1763802644513,-505.32,0.00016438,2]
[394637908,1763802644525,-735.9,0.00016438,2]
[394637909,1763802644534,-753.52,0.00016438,2]
[394637910,1763802644543,-712.01,0.00016438,2]
[394637911,1763802644552,-715.73,0.00016438,2]
[394637912,1763802644561,-500.0,0.00016438,2]
[394637913,1763802644570,-603.59,0.00016438,2]
[394637914,1763802644580,-500.0,0.00016438,2]
[394637915,1763802644588,-581.52,0.00016438,2]
[394637916,1763802644598,-669.35,0.00016438,2]
[394637917,1763802644608,-500.0,0.00016438,2]
[394637918,1763802644617,-500.0,0.00016438,2]
[394637919,1763802644627,-500.0,0.00016438,2]
[394637920,1763802644635,-854.56,0.00016438,2]
[394637921,1763802644645,-500.0,0.00016438,2]
[394637922,1763802644654,-500.0,0.00016438,2]
[394637923,1763802644663,-543.07,0.00016438,2]
[394637924,1763802644672,-500.0,0.00016438,2]
[394637925,1763802644681,-645.5,0.00016438,2]
[394637926,1763802644690,-500.0,0.00016438,2]
[394637927,1763802644699,-500.0,0.00016438,2]
[394637928,1763802644708,-640.31,0.00016438,2]
[394637929,1763802644717,-606.98,0.00016438,2]
[394637930,1763802644728,-500.0,0.00016438,2]
[394637931,1763802644737,-791.77,0.00016438,2]
[394637932,1763802644747,-500.0,0.00016438,2]
[394637933,1763802644756,-500.0,0.00016438,2]
[394637934,1763802644765,-500.0,0.00016438,2]
[394637935,1763802644774,-500.0,0.00016438,2]
[394637936,1763802644784,-500.0,0.00016438,2]
[394637938,1763802644793,-667.94,0.00016438,2]
[394637940,1763802644803,-683.71,0.00016438,2]
[394637941,1763802644812,-500.0,0.00016438,2]
[394637942,1763802644821,-500.0,0.00016438,2]
[394637943,1763802644830,-211.11659013,0.00016438,2]
[394637944,1763802644839,-500.0,0.00016438,2]
[394637945,1763802644848,-500.0,0.00016438,2]
[394637946,1763802644858,-786.25,0.00016438,2]
[394637947,1763802644867,-500.0,0.00016438,2]
[394637948,1763802644876,-500.0,0.00016438,2]
[394637949,1763802644886,-426.62279448,0.00016438,2]
[394637950,1763802644895,-500.0,0.00016438,2]
[394637951,1763802644904,-500.0,0.00016438,2]
[394637952,1763802644914,-500.0,0.00016438,2]
[394637953,1763802644923,-529.8,0.00016438,2]
[394637954,1763802644932,-500.0,0.00016438,2]
[394637955,1763802644940,-500.0,0.00016438,2]
[394637956,1763802644950,-530.01,0.00016438,2]
[394637957,1763802644959,-551.73,0.00016438,2]
[394637958,1763802644968,-585.99,0.00016438,2]
[394637959,1763802644977,-500.0,0.00016438,2]
[394637960,1763802644987,-500.0,0.00016438,2]
[394637961,1763802644996,-500.0,0.00016438,2]
[394637962,1763802645007,-852.61,0.00016438,2]
[394637963,1763802645016,-500.0,0.00016438,2]
[394637964,1763802645025,-500.0,0.00016438,2]
[394637965,1763802645034,-500.0,0.00016438,2]
[394637966,1763802645043,-720.98,0.00016438,2]
[394637967,1763802645052,-500.0,0.00016438,2]
[394637968,1763802645061,-500.0,0.00016438,2]
[394637969,1763802645071,-500.0,0.00016438,2]
[394637970,1763802645082,-1047.39,0.00016438,2]
[394637971,1763802645091,-500.0,0.00016438,2]
[394637972,1763802645101,-500.0,0.00016438,2]
[394637973,1763802645111,-515.33,0.00016438,2]
[394637974,1763802645122,-500.0,0.00016438,2]
[394637975,1763802645134,-745.02,0.00016438,2]
[394637976,1763802645143,-765.65,0.00016438,2]
[394637977,1763802645152,-629.09386974,0.00016438,2]
[394637978,1763802645161,-500.0,0.00016438,2]
[394637979,1763802645170,-500.0,0.00016438,2]
[394637980,1763802645178,-500.0,0.00016438,2]
[394637981,1763802645187,-500.0,0.00016438,2]
[394637982,1763802645196,-755.89,0.00016438,2]
[394637983,1763802645205,-777.64,0.00016438,2]
[394637984,1763802645215,-500.0,0.00016438,2]
[394637985,1763802645225,-727.34,0.00016438,2]
[394637986,1763802645234,-500.0,0.00016438,2]
[394637987,1763802645245,-500.0,0.00016438,2]
[394637988,1763802645254,-500.0,0.00016438,2]
[394637989,1763802645265,-503.88,0.00016438,2]
[394637990,1763802645275,-500.0,0.00016438,2]
[394637991,1763802645286,-500.0,0.00016438,2]
[394637992,1763802645294,-754.47,0.00016438,2]
[394637993,1763802645303,-500.0,0.00016438,2]
[394637994,1763802645312,-624.13,0.00016438,2]
[394637995,1763802645321,-1063.69681284,0.00016438,2]
[394637996,1763802645338,-262.70318716,0.00016438,2]
[394637997,1763802645348,-500.0,0.00016438,2]
[394637998,1763802645357,-500.0,0.00016438,2]
[394637999,1763802645367,-421.47097394,0.00016438,2]
[394638000,1763802645611,-78.52902606,0.00016438,2]
[394638001,1763802645621,-500.0,0.00016438,2]
[394638002,1763802645630,-91.49097396,0.00016438,2]
[394638003,1763802645641,-408.50902604,0.00016438,2]
[394638004,1763802645650,-500.0,0.00016438,2]
[394638005,1763802645659,-500.0,0.00016438,2]
[394638006,1763802645669,-931.32,0.00016438,2]
[394638007,1763802645678,-713.7,0.00016438,2]
[394638008,1763802645687,-500.0,0.00016438,2]
[394638009,1763802645696,-500.0,0.00016438,2]
[394638010,1763802645705,-679.82,0.00016438,2]
[394638011,1763802645714,-534.53365086,0.00016438,2]
[394638012,1763802645723,-731.47,0.00016438,2]
[394638013,1763802645732,-500.0,0.00016438,2]
[394638014,1763802645741,-802.22,0.00016438,2]
[394638015,1763802645751,-500.0,0.00016438,2]
[394638016,1763802645760,-500.0,0.00016438,2]
[394638017,1763802645770,-528.63,0.00016438,2]
[394638018,1763802645779,-500.0,0.00016438,2]
[394638019,1763802645788,-500.0,0.00016438,2]
[394638020,1763802645797,-500.0,0.00016438,2]
[394638021,1763802645807,-500.0,0.00016438,2]
[394638022,1763802645816,-500.0,0.00016438,2]
[394638023,1763802645825,-500.0,0.00016438,2]
[394638024,1763802645835,-866.13,0.00016438,2]
[394638025,1763802645844,-531.97,0.00016438,2]
[394638026,1763802645854,-500.0,0.00016438,2]
[394638027,1763802645863,-673.9,0.00016438,2]
[394638029,1763802645873,-500.0,0.00016438,2]
[394638031,1763802645882,-959.14,0.00016438,2]
[394638033,1763802645891,-500.0,0.00016438,2]
[394638035,1763802645900,-500.0,0.00016438,2]
[394638037,1763802645909,-496.81071461,0.00016438,2]
[394638039,1763802645919,-500.0,0.00016438,2]
[394638041,1763802645928,-500.0,0.00016438,2]
[394638043,1763802645945,-991.83,0.00016438,2]
[394638045,1763802645954,-500.0,0.00016438,2]
[394638047,1763802645963,-500.0,0.00016438,2]
[394638048,1763802645972,-500.0,0.00016438,2]
[394638050,1763802645982,-1179.47,0.00016438,2]
[394638052,1763802645992,-849.19,0.00016438,2]
[394638054,1763802646001,-1076.3032712,0.00016438,2]
[394638067,1763803740685,661.95,0.00019178,30]
[394638073,1763803831592,-999.0,0.00015116,3]
[394638074,1763803831602,-300.0,0.00015237,2]
[394638075,1763803831611,-300.0,0.00015237,2]
[394638076,1763803831620,-29.67,0.00015237,2]
[394638077,1763803831649,-270.33,0.00015237,2]
[394638078,1763803831658,-1200.0,0.00015237,2]
[394638079,1763803831667,-500.0,0.00015238,2]
[394638080,1763803831677,-500.0,0.00015238,2]
[394638081,1763803831688,-500.0,0.00015238,2]
[394638082,1763803831704,-500.0,0.00015238,2]
[394638083,1763803831713,-500.0,0.00015238,2]
[394638084,1763803831723,-500.0,0.00015238,2]
[394638085,1763803831732,-500.0,0.00015238,2]
[394638086,1763803831742,-500.0,0.00015238,2]
[394638087,1763803831752,-500.0,0.00015238,2]
[394638088,1763803831760,-500.0,0.00015238,2]
[394638090,1763803831769,-500.0,0.00015238,2]
[394638092,1763803831779,-500.0,0.00015238,2]
[394638094,1763803831787,-500.0,0.00015238,2]
[394638096,1763803831796,-500.0,0.00015238,2]
[394638098,1763803831804,-500.0,0.00015238,2]
[394638100,1763803831813,-500.0,0.00015238,2]
[394638102,1763803831822,-500.0,0.00015238,2]
[394638104,1763803831833,-500.0,0.00015238,2]
[394638106,1763803831841,-500.0,0.00015238,2]
[394638108,1763803831850,-500.0,0.00015238,2]
[394638110,1763803831859,-500.0,0.00015238,2]
[394638112,1763803831868,-500.0,0.00015238,2]
[394638114,1763803831876,-500.0,0.00015238,2]
[394638117,1763803831885,-500.0,0.00015238,2]
[394638120,1763803831894,-500.0,0.00015238,2]
[394638122,1763803831903,-500.0,0.00015238,2]
[394638124,1763803831911,-500.0,0.00015238,2]
[394638126,1763803831921,-500.0,0.00015238,2]
[394638128,1763803831930,-500.0,0.00015238,2]
[394638130,1763803831943,-500.0,0.00015238,2]
[394638132,1763803831951,-492.92205431,0.00015238,2]
[394638134,1763803831960,-500.0,0.00015238,2]
[394638136,1763803831969,-500.0,0.00015238,2]
[394638138,1763803831979,-500.0,0.00015238,2]
[394638140,1763803831987,-500.0,0.00015238,2]
[394638142,1763803831997,-500.0,0.00015238,2]
[394638144,1763803832006,-500.0,0.00015238,2]
[394638146,1763803832016,-110.27972552,0.00015239,2]
[394638148,1763803832027,-264.5794,0.00015239,2]
[394638157,1763803837643,-662.671405,0.00015239,2]
[394638158,1763803837759,-660.1508,0.00015239,2]
[394638161,1763803841718,-8268.1571751,0.00015239,2]
[394638166,1763803843057,-0.44303503,0.00015239,2]
[394638167,1763803843085,-20965.99996,0.00015239,2]
[394638168,1763803843097,-439.88185549,0.00015239,2]
[394638169,1763803843108,-603.6966655,0.00015239,2]
[394638170,1763803843145,-34159.44057052,0.00015239,2]
[394638171,1763803843157,-1985.73665568,0.00015239,2]
[394638172,1763803843257,-21335.03770631,0.00015239,2]
[394638173,1763803843269,-16381.16504585,0.00015239,2]
[394638174,1763803843278,-220.19105667,0.00015288,2]
[394638175,1763803843288,-150.0,0.00015288,2]
[394638176,1763803843297,-200.0,0.0001531,2]
[394638177,1763803843307,-205.33,0.0001545,2]
[394638178,1763803843317,-1096.0,0.00015597,2]
[394638179,1763803843327,-578.20924308,0.00015615,2]
[394638180,1763803843336,-164.30576557,0.00015745,2]
[394638181,1763803843345,-158.60422446,0.00015745,2]
[394638182,1763803843355,-879.0,0.00015809,2]
[394638183,1763803843364,-215.52622799,0.00015837,2]
[394638184,1763803843374,-46409.31753911,0.00015838,2]
[394638185,1763803843388,-25186.3396482,0.00015838,2]
[394638186,1763803843401,-21844.03906572,0.00015838,2]
[394638191,1763803845614,-1425.7980587,0.00015838,2]
[394638192,1763803845673,-469.67596019,0.00015838,2]
[394638193,1763803845796,-464.57653378,0.00015838,2]
[394638209,1763804190537,168.93,0.00022,30]
[394638210,1763804223425,166.66,0.00014382,2]
[394638211,1763804223631,166.66,0.00014685,2]
[394638215,1763804397328,663.98,0.00013699,2]
[394638217,1763804524483,-759.152318,0.00014913,2]
[394638218,1763804524513,-166.66,0.00014988,2]
[394638221,1763804593861,500.0,0.00014868,2]
[394638222,1763804600025,500.0,0.00014868,2]
[394638224,1763804607398,500.0,0.00014867,2]
[394638225,1763804608577,500.0,0.00014868,2]
[394638226,1763804608664,500.0,0.00014868,2]
[394638227,1763804609563,500.0,0.00014868,2]
[394638228,1763804610907,500.0,0.00014868,2]
[394638229,1763804619618,200.0,0.00014867,2]
[394638230,1763804619957,200.0,0.00014868,2]
[394638231,1763804620743,200.0,0.00014868,2]
[394638232,1763804751910,150.0,0.00014837,2]
[394638233,1763804752154,150.0,0.00014837,120]
[394638234,1763804825576,250.0,0.00014825,2]
[394638236,1763804845599,160.67567576,0.00015,2]
[394638237,1763804887872,200.0,0.0001481,2]
[394638239,1763805031782,-1537.36,0.00015221,2]
[394638240,1763805031794,-62.64,0.00015221,2]
[394638241,1763805031803,-250.0,0.00015229,2]
[394638242,1763805031812,-863.4241289,0.00015238,2]
[394638243,1763805031821,-1000.0,0.00015248,2]
[394638244,1763805031829,-166.66,0.00015291,2]
[394638245,1763805031839,-151.0,0.00015507,2]
[394638246,1763805031848,-1092.0,0.00015508,2]
[394638247,1763805031858,-300.0,0.00015508,2]
[394638248,1763805031867,-300.0,0.00015508,2]
[394638249,1763805031877,-237.4758711,0.00015508,2]
[394638250,1763805031916,-962.5241289,0.00015508,2]
[394638251,1763805031926,-300.0,0.00015509,2]
[394638252,1763805031935,-19848.91267193,0.0001551,2]
[394638255,1763805032263,-6474.20237181,0.0001551,2]
[394638256,1763805032277,-1305.0,0.0001551,2]
[394638257,1763805032288,-5055.70213579,0.0001551,2]
[394638258,1763805032298,-1015.44456328,0.0001551,2]
[394638259,1763805032317,-11675.10885959,0.0001551,2]
[394638260,1763805032325,-5275.54789575,0.0001551,2]
[394638261,1763805032336,-8411.9,0.0001551,2]
[394638263,1763805037794,-749.55948085,0.0001551,2]
[394638264,1763805037803,-3169.2532815,0.0001551,2]
[394638265,1763805037812,-1112.4352673,0.00015511,2]
[394638266,1763805037820,-4940.97110201,0.00015527,2]
[394638267,1763805037831,-2377.36117086,0.00015527,2]
[394638268,1763805037840,-166.66,0.0001553,2]
[394638269,1763805037849,-166.66,0.00015593,2]
[394638270,1763805037858,-404.18817125,0.00015615,2]
[394638297,1763805039923,-174.02107183,0.00015615,2]
[394638298,1763805039933,-2505.66361821,0.000157,2]
[394638299,1763805039941,-855.58909317,0.00015728,2]
[394638300,1763805039951,-842.75139773,0.00015728,2]
[394638301,1763805039959,-160.41088699,0.00015728,2]
[394638302,1763805039969,-522.41,0.00015728,2]
[394638303,1763805039978,-500.0,0.00015736,2]
[394638304,1763805039987,-500.0,0.00015736,2]
[394638305,1763805039995,-500.0,0.00015736,2]
[394638306,1763805040004,-500.0,0.00015736,2]
[394638307,1763805040014,-500.0,0.00015736,2]
[394638308,1763805040023,-318.92297207,0.00015736,2]
[394638309,1763805040032,-500.0,0.00015736,2]
[394638310,1763805040041,-500.0,0.00015736,2]
[394638311,1763805040050,-500.0,0.00015736,2]
[394638312,1763805040059,-244.75399564,0.00015736,2]
[394638313,1763805040068,-500.0,0.00015736,2]
[394638314,1763805040077,-301.48896148,0.00015736,2]
[394638315,1763805040086,-500.0,0.00015736,2]
[394638316,1763805040096,-500.0,0.00015736,2]
[394638317,1763805040105,-500.0,0.00015736,2]
[394638318,1763805040114,-500.0,0.00015736,2]
[394638319,1763805040123,-500.0,0.00015736,2]
[394638320,1763805040134,-500.0,0.00015736,2]
[394638321,1763805040143,-500.0,0.00015736,2]
[394638322,1763805040152,-500.0,0.00015736,2]
[394638323,1763805040161,-500.0,0.00015736,2]
[394638324,1763805040171,-500.0,0.00015736,2]
[394638325,1763805040180,-500.0,0.00015736,2]
[394638326,1763805040189,-500.0,0.00015736,2]
[394638327,1763805040198,-500.0,0.00015736,2]
[394638328,1763805040207,-500.0,0.00015736,2]
[394638330,1763805040217,-500.0,0.00015736,2]
[394638331,1763805040225,-500.0,0.00015736,2]
[394638332,1763805040234,-500.0,0.00015736,2]
[394638333,1763805040243,-500.0,0.00015736,2]
[394638334,1763805040252,-500.0,0.00015736,2]
[394638335,1763805040261,-500.0,0.00015736,2]
[394638336,1763805040270,-500.0,0.00015736,2]
[394638337,1763805040279,-500.0,0.00015736,2]
[394638338,1763805040288,-500.0,0.00015736,2]
[394638339,1763805040296,-500.0,0.00015736,2]
[394638340,1763805040305,-500.0,0.00015736,2]
[394638341,1763805040314,-628.73410377,0.00015736,2]
[394638342,1763805040324,-500.0,0.00015736,2]
[394638343,1763805040333,-500.0,0.00015736,2]
[394638344,1763805040342,-479.11745982,0.00015736,2]
[394638345,1763805040356,-500.0,0.00015736,2]
[394638346,1763805040365,-500.0,0.00015736,2]
[394638347,1763805040375,-500.0,0.00015736,2]
[394638348,1763805040543,-500.0,0.00015736,2]
[394638349,1763805040553,-286.24596362,0.00015736,2]
[394638350,1763805040563,-500.0,0.00015736,2]
[394638351,1763805040572,-500.0,0.00015736,2]
[394638352,1763805040581,-500.0,0.00015736,2]
[394638353,1763805040591,-500.0,0.00015736,2]
[394638354,1763805040600,-500.0,0.00015736,2]
[394638355,1763805040609,-500.0,0.00015736,2]
[394638356,1763805040619,-500.0,0.00015736,2]
[394638357,1763805040628,-500.0,0.00015736,2]
[394638358,1763805040637,-500.0,0.00015736,2]
[394638359,1763805040646,-150.86835959,0.00015737,2]
[394638360,1763805040655,-310289.04649181,0.00015738,2]
[394638361,1763805040678,-24000.0,0.00015738,2]
[394638364,1763805046108,-1249.32300924,0.00015738,2]
[394638372,1763805055724,287.0,0.00022,30]
[394638389,1763805771191,1977.0,0.00014998,2]
[394638390,1763805774367,208.21,0.00014993,2]
[394638391,1763805796426,500.0,0.00014873,2]
[394638392,1763805804290,500.0,0.00014873,2]
[394638393,1763805808457,500.0,0.00014873,2]
[394638396,1763805820268,200.0,0.00014873,2]
[394638397,1763805994727,200.0,0.00014985,2]
[394638398,1763806232023,-205.33,0.00015089,2]
[394638399,1763806232032,-168.0,0.00015394,2]
[394638400,1763806232041,-1000.0,0.000155,2]
[394638401,1763806232051,-1485.0,0.00015513,2]
[394638402,1763806232060,-578.20924308,0.00015528,2]
[394638403,1763806232068,-2190.14597,0.0001558,2]
[394638404,1763806232078,-1485.0,0.00015598,2]
[394638405,1763806232087,-1200.0,0.00015599,2]
[394638406,1763806232096,-1000.0,0.000156,2]
[394638407,1763806232104,-600.0,0.00015609,2]
[394638408,1763806232113,-300.0,0.00015609,2]
[394638409,1763806232123,-1485.0,0.00015615,2]
[394638410,1763806232131,-300.0,0.00015636,2]
[394638411,1763806232140,-197.68213926,0.00015637,2]
[394638412,1763806232150,-500.0,0.00015637,2]
[394638413,1763806232159,-500.0,0.00015637,2]
[394638414,1763806232167,-500.0,0.00015637,2]
[394638415,1763806232176,-500.0,0.00015637,2]
[394638416,1763806232185,-500.0,0.00015637,2]
[394638417,1763806232194,-500.0,0.00015637,2]
[394638418,1763806232203,-500.0,0.00015637,2]
[394638419,1763806232211,-323.30138991,0.00015637,2]
[394638420,1763806232220,-500.0,0.00015637,2]
[394638421,1763806232229,-500.0,0.00015637,2]
[394638422,1763806232238,-500.0,0.00015637,2]
[394638423,1763806232246,-500.0,0.00015637,2]
[394638424,1763806232255,-500.0,0.00015637,2]
[394638425,1763806232264,-500.0,0.00015637,2]
[394638426,1763806232273,-1485.0,0.00015638,2]
[394638427,1763806232282,-758.47625793,0.00015638,2]
[394638428,1763806232291,-3811.40299434,0.00015638,2]
[394638429,1763806232302,-7593.34499928,0.00015638,2]
[394638430,1763806232408,-7213.02934474,0.00015638,2]
[394638431,1763806232419,-15826.8669858,0.00015638,2]
[394638432,1763806237912,-1738.835448,0.00015638,2]
[394638433,1763806237924,-1542.47572986,0.00015638,2]
[394638434,1763806238183,-2197.11316772,0.00015638,2]
[394638501,1763806239967,-1230.0,0.00015638,2]
[394638502,1763806240125,-8362.88721032,0.00015638,2]
[394638503,1763806240142,-1151.876001,0.00015638,2]
[394638504,1763806240154,-1360.04125063,0.00015638,2]
[394638505,1763806240167,-4110.68190594,0.00015638,2]
[394638506,1763806240179,-18332.03133772,0.00015638,2]
[394638515,1763806244454,-1137.79536712,0.00015638,2]
[394638516,1763806244524,-735.24608787,0.00015638,2]
[394638517,1763806244536,-4024.8295,0.00015638,2]
[394638519,1763806248360,-40530.67016966,0.00015638,2]
[394638520,1763806248370,-1561.0,0.000157,2]
[394638521,1763806248380,-6933.91976297,0.00015729,2]
[394638522,1763806248389,-1215.1704402,0.00015738,2]
[394638523,1763806248398,-509.1770438,0.00015738,2]
[394638524,1763806248406,-150.43,0.000158,2]
[394638525,1763806248415,-300.0,0.000158,2]
[394638526,1763806248427,-150.0,0.000158,2]
[394638527,1763806248438,-150.0,0.000158,2]
[394638528,1763806248447,-150.0,0.000158,2]
[394638529,1763806248457,-150.0,0.000158,2]
[394638530,1763806248467,-1485.0,0.0001584,2]
[394638531,1763806248477,-879.0,0.00015884,2]
[394638532,1763806248487,-166.66,0.00015896,2]
[394638533,1763806248496,-440.41,0.000159,2]
[394638534,1763806248505,-879.0,0.00015945,2]
[394638535,1763806248518,-758.47625791,0.00016059,2]
[394638536,1763806248527,-168.0,0.00016085,2]